bitfinex-derivatives/quotes_BTCF0:USTF0_20250117
["timestamp","ask_amount","ask_price","bid_price","bid_amount"]
[1737130953517,0.3608,104820.0,104810.0,0.095381]
[1737130954116,0.53966022,104820.0,104810.0,0.06157409]
[1737130954418,0.3608,104820.0,104810.0,0.01388409]
[1737130954621,0.3608,104820.0,104810.0,0.13116722]
[1737130955015,0.4818,104820.0,104810.0,0.13116722]
[1737130955225,0.4818,104820.0,104790.0,0.37604382]
[1737130955414,0.4818,104820.0,104810.0,0.13116722]
[1737130956223,0.61296722,104820.0,104790.0,0.50721104]
[1737130956725,0.4818,104820.0,104790.0,0.50721104]
[1737130957427,0.3608,104810.0,104790.0,0.14641104]
[1737130957922,0.3608,104810.0,104790.0,0.01524382]
[1737130958516,0.4818,104820.0,104800.0,0.13116722]
[1737130959425,0.4818,104820.0,104790.0,2.00721104]
[1737130959932,0.3608,104810.0,104790.0,1.64641104]
[1737130960223,0.61296722,104820.0,104790.0,1.64641104]
[1737130960419,0.1211,104810.0,104790.0,1.64641104]
[1737130960832,0.1211,104810.0,104790.0,2.00721104]
[1737130961127,0.4819,104810.0,104790.0,2.00721104]
[1737130961531,0.4819,104810.0,104790.0,0.14641104]
[1737130962322,0.4819,104810.0,104790.0,0.01524382]
[1737130962626,0.4819,104810.0,104790.0,0.14641104]
[1737130964117,0.1211,104810.0,104800.0,0.13116722]
[1737130965622,0.4819,104810.0,104800.0,0.13116722]
[1737130965926,0.1211,104810.0,104800.0,0.49196722]
[1737130966129,0.121,104820.0,104800.0,0.49196722]
[1737130967131,0.6367,104830.0,104810.0,0.13116722]
[1737130967132,0.03,104830.0,104810.0,0.13116722]
[1737130967532,0.03,104830.0,104820.0,0.13116722]
[1737130969633,0.03,104830.0,104810.0,0.49196722]
[1737130970135,0.3908,104830.0,104810.0,0.13116722]
[1737130970635,0.3908,104830.0,104800.0,0.73146722]
[1737130970830,0.3908,104830.0,104810.0,0.13116722]
[1737130973136,0.3608,104820.0,104810.0,0.13116722]
[1737130973324,0.3908,104830.0,104800.0,0.73146722]
[1737130973529,0.3908,104830.0,104810.0,0.13116722]
[1737130973733,0.3908,104830.0,104810.0,0.49196722]
[1737130973931,0.03,104830.0,104820.0,0.49196722]
[1737130974127,0.3908,104830.0,104820.0,0.13116722]
[1737130974527,0.3908,104830.0,104810.0,0.3608]
[1737130974728,0.3908,104830.0,104810.0,0.49196722]
[1737130975938,0.3908,104830.0,104810.0,0.3608]
[1737130976137,0.1219,104820.0,104810.0,0.3608]
[1737130977244,0.2463,104820.0,104810.0,0.3608]
[1737130978038,0.2463,104820.0,104810.0,0.49196722]
[1737130978433,0.2463,104820.0,104810.0,0.3608]
[1737130978934,0.6071,104820.0,104800.0,0.25146722]
[1737130979144,0.6071,104820.0,104800.0,0.13116722]
[1737130979341,0.6071,104820.0,104790.0,0.61196722]
[1737130979535,0.1266,104810.0,104790.0,0.50591164]
[1737130979729,0.1266,104810.0,104790.0,0.37474442]
[1737130980238,0.1266,104810.0,104790.0,0.50591164]
[1737130980629,0.1266,104810.0,104800.0,0.13116722]
[1737130981136,0.61856722,104810.0,104790.0,0.01394442]
[1737130981441,0.61856722,104810.0,104780.0,0.61706722]
[1737130982435,0.66626222,104810.0,104780.0,0.61706722]
[1737130982636,0.66626222,104810.0,104780.0,0.49196722]
[1737130982839,0.1266,104810.0,104790.0,0.13116722]
[1737130983032,0.4874,104810.0,104790.0,0.13116722]
[1737130983538,0.4874,104810.0,104780.0,0.3608]
[1737130983539,0.66626122,104810.0,104780.0,0.3608]
[1737130983839,0.4874,104810.0,104780.0,0.50543231]
[1737130984735,0.61856722,104810.0,104780.0,0.50543231]
[1737130986437,0.3608,104800.0,104780.0,0.50543231]
[1737130986737,0.3608,104800.0,104790.0,0.13116722]
[1737130986937,0.3608,104800.0,104780.0,0.50543231]
[1737130987644,0.3608,104800.0,104780.0,0.46174664]
[1737130987845,0.3608,104800.0,104780.0,0.10094664]
[1737130987846,0.6034,104790.0,104780.0,0.10094664]
[1737130988142,0.69088155,104790.0,104780.0,0.01346509]
[1737130988339,0.69088155,104790.0,104770.0,0.3608]
[1737130988541,0.1271,104780.0,104770.0,0.3608]
[1737130989439,0.1271,104780.0,104770.0,0.44828155]
[1737130989641,0.1271,104780.0,104770.0,0.3608]
[1737130990248,0.4879,104780.0,104770.0,0.01395304]
[1737130990451,0.1271,104780.0,104760.0,0.4920667]
[1737130990743,0.1271,104780.0,104770.0,0.1312667]
[1737130990944,0.1271,104780.0,104770.0,0.4920667]
[1737130991745,0.2426,104790.0,104770.0,0.4920667]
[1737130991941,0.02373512,104800.0,104780.0,0.4920667]
[1737130992143,0.13033196,104820.0,104790.0,0.4920667]
[1737130992353,0.00143196,104820.0,104810.0,0.5397607]
[1737130992539,0.149,104830.0,104810.0,0.5397607]
[1737130992743,0.2802667,104830.0,104810.0,0.3608]
[1737130992950,0.4920667,104820.0,104780.0,0.7893717]
[1737130993150,0.4920667,104810.0,104780.0,0.658105]
[1737130993345,0.6145667,104800.0,104780.0,0.658105]
[1737130993553,0.4833,104800.0,104780.0,0.658105]
[1737130993749,0.4833,104800.0,104780.0,0.7893717]
[1737130993939,0.1289,104810.0,104790.0,0.4920667]
[1737130994147,0.4833,104820.0,104800.0,0.4920667]
[1737130994347,0.2509,104820.0,104810.0,0.3608]
[1737130994546,0.1225,104820.0,104810.0,0.4920667]
[1737130995054,0.1225,104820.0,104810.0,0.3608]
[1737130995846,0.1225,104820.0,104810.0,0.4920667]
[1737130996252,0.1225,104820.0,104810.0,0.50952356]
[1737130996848,0.1225,104820.0,104810.0,0.37825686]
[1737130998043,0.4833,104820.0,104810.0,0.01745686]
[1737130998247,0.4833,104820.0,104800.0,0.4920667]
[1737130998652,0.4833,104820.0,104810.0,0.1312667]
[1737130999749,0.4833,104820.0,104800.0,0.50952971]
[1737131001357,0.4833,104820.0,104800.0,0.37826301]
[1737131001550,0.3608,104810.0,104800.0,0.01746301]
[1737131001750,0.5397607,104810.0,104780.0,0.4851]
[1737131001960,0.2523,104800.0,104780.0,0.4920667]
[1737131002159,0.2523,104800.0,104790.0,0.1312667]
[1737131002160,0.1258,104800.0,104790.0,0.1312667]
[1737131002757,0.1258,104800.0,104780.0,0.37771187]
[1737131002758,0.1258,104800.0,104780.0,0.50897857]
[1737131003955,0.3608,104790.0,104780.0,0.01691187]
[1737131004254,0.3608,104750.0,104710.0,0.28063405]
[1737131004460,0.9841334,104720.0,104710.0,0.28063405]
[1737131004660,0.9841334,104720.0,104680.0,0.39228743]
[1737131004852,0.3608,104690.0,104680.0,0.40969341]
[1737131005049,0.1312667,104690.0,104680.0,0.40969341]
[1737131005254,0.4920667,104690.0,104680.0,0.39228743]
[1737131005457,0.6233334,104690.0,104680.0,0.39228743]
[1737131005852,0.6710814,104690.0,104680.0,0.39228743]
[1737131006054,0.95649351,104690.0,104660.0,0.3608]
[1737131006258,0.4920667,104670.0,104640.0,0.3795037]
[1737131006574,1.0319014,104650.0,104610.0,0.3608]
[1737131006759,0.4920667,104660.0,104640.0,0.3608]
[1737131007060,0.047758,104670.0,104650.0,0.3608]
[1737131007361,0.047758,104670.0,104660.0,0.3608]
[1737131007550,0.047754,104680.0,104650.0,0.3608]
[1737131007751,0.25520119,104670.0,104660.0,0.3608]
[1737131008354,0.25520119,104670.0,104660.0,0.4920667]
[1737131008656,0.06290119,104670.0,104660.0,0.4920667]
[1737131008857,0.06147031,104670.0,104660.0,0.4920667]
[1737131009063,0.1312667,104670.0,104660.0,0.3608]
[1737131009268,0.1312667,104670.0,104650.0,0.3783365]
[1737131009556,0.047762,104660.0,104650.0,0.3608]
[1737131009764,0.1790287,104660.0,104640.0,0.3608]
[1737131010059,0.1312667,104650.0,104630.0,0.36347353]
[1737131010258,0.1312667,104650.0,104630.0,0.00143353]
[1737131010259,0.5398377,104640.0,104630.0,0.00143353]
[1737131010562,0.047776,104630.0,104610.0,0.3608]
[1737131010758,0.1790427,104630.0,104610.0,0.3608]
[1737131011064,0.1790427,104630.0,104610.0,0.4920667]
[1737131011065,0.047776,104630.0,104610.0,0.4920667]
[1737131011361,0.047776,104630.0,104610.0,0.1312667]
[1737131011870,0.047776,104630.0,104620.0,0.3608]
[1737131012067,0.6075667,104650.0,104620.0,0.3608]
[1737131012254,0.047773,104640.0,104620.0,0.3608]
[1737131012652,0.408573,104640.0,104620.0,0.1312667]
[1737131012855,0.5398397,104640.0,104610.0,1.9920667]
[1737131013365,0.04778,104620.0,104610.0,1.8608]
[1737131013558,0.047778,104630.0,104610.0,1.9920667]
[1737131013765,0.04778,104620.0,104610.0,1.8608]
[1737131014071,0.5398467,104620.0,104610.0,1.5]
[1737131014262,0.5398467,104620.0,104600.0,0.47764305]
[1737131014456,0.40858,104620.0,104600.0,0.47764305]
[1737131014653,0.40858,104620.0,104600.0,1.97764305]
[1737131014854,0.047784,104610.0,104600.0,1.97764305]
[1737131015664,0.04778,104620.0,104600.0,2.10890975]
[1737131015964,0.04778,104620.0,104610.0,0.3608]
[1737131016367,0.1790467,104620.0,104610.0,0.3608]
[1737131016558,0.04778,104620.0,104610.0,0.3608]
[1737131017162,0.04778,104620.0,104600.0,2.11014975]
[1737131017363,0.408575,104640.0,104610.0,0.4920667]
[1737131017568,0.5398417,104640.0,104610.0,0.4920667]
[1737131018062,0.1312667,104630.0,104610.0,0.3608]
[1737131018364,0.5398467,104620.0,104600.0,1.97888305]
[1737131018667,0.1790467,104620.0,104600.0,1.97764305]
[1737131018865,0.1790507,104610.0,104600.0,1.6]
[1737131019168,0.047784,104610.0,104600.0,0.4608]
[1737131020155,0.047784,104610.0,104600.0,0.1]
[1737131020356,0.047784,104610.0,104600.0,0.4608]
[1737131020765,0.5398507,104610.0,104600.0,0.1]
[1737131020972,0.1790507,104610.0,104600.0,0.4608]
[1737131021170,0.047784,104610.0,104600.0,0.4608]
[1737131021672,0.3608,104620.0,104600.0,0.5920667]
[1737131021871,0.408581,104620.0,104600.0,0.4608]
[1737131022570,0.047784,104610.0,104600.0,0.4608]
[1737131022868,0.047778,104630.0,104600.0,0.5920667]
[1737131023069,0.047778,104630.0,104620.0,0.4920667]
[1737131023274,0.6075667,104650.0,104620.0,0.4920667]
[1737131023275,0.408567,104650.0,104620.0,0.4920667]
[1737131023568,0.047771,104640.0,104630.0,0.3608]
[1737131024069,0.1790377,104640.0,104630.0,0.3608]
[1737131024269,0.5398377,104640.0,104610.0,0.3608]
[1737131024570,0.04778,104620.0,104610.0,0.3608]
[1737131024767,0.1312667,104620.0,104600.0,1.96204]
[1737131025072,0.047784,104610.0,104600.0,1.9608]
[1737131025273,0.047784,104610.0,104600.0,0.4608]
[1737131025971,0.047784,104610.0,104600.0,0.5920667]
[1737131026271,0.047781,104620.0,104600.0,0.5920667]
[1737131026870,0.047781,104620.0,104610.0,0.3608]
[1737131027873,0.047781,104620.0,104610.0,0.4920667]
[1737131028070,0.1790477,104620.0,104600.0,0.4819732]
[1737131028370,0.047784,104610.0,104600.0,0.4819732]
[1737131031069,0.047784,104610.0,104600.0,0.6132399]
[1737131031672,0.047784,104610.0,104600.0,0.4819732]
[1737131032672,0.047784,104610.0,104600.0,0.4608]
[1737131036463,0.1239,104640.0,104600.0,1.0233334]
[1737131036663,0.04920123,104650.0,104630.0,0.8528667]
[1737131036861,0.00143423,104650.0,104640.0,0.4920667]
[1737131037167,0.06147031,104650.0,104640.0,0.4920667]
[1737131037470,0.06147031,104650.0,104640.0,0.3608]
[1737131037471,0.10923631,104650.0,104640.0,0.3608]
[1737131037971,0.24050301,104650.0,104640.0,0.3608]
[1737131038172,0.047775,104630.0,104620.0,0.3608]
[1737131038377,0.5398417,104630.0,104620.0,0.02138693]
[1737131038674,0.04778,104620.0,104610.0,0.3608]
[1737131040467,0.3608,104630.0,104610.0,0.4920667]
[1737131040672,0.047775,104640.0,104620.0,0.3608]
[1737131040873,0.178675,104630.0,104620.0,0.3608]
[1737131041068,0.047775,104630.0,104620.0,0.8528667]
[1737131041270,0.047775,104630.0,104620.0,0.7216]
[1737131042779,0.047775,104630.0,104620.0,0.3608]
[1737131042965,0.04778,104620.0,104610.0,0.614]
[1737131043878,0.5398377,104640.0,104610.0,0.614]
[1737131043879,0.047774,104640.0,104610.0,0.7930487]
[1737131044083,0.1790407,104640.0,104630.0,0.3608]
[1737131044282,0.81344343,104640.0,104620.0,0.3608]
[1737131044569,0.1790417,104630.0,104620.0,0.3608]
[1737131044775,0.047784,104610.0,104600.0,0.4608]
[1737131044975,0.1790507,104610.0,104600.0,0.4608]
[1737131045178,0.047784,104610.0,104600.0,0.4608]
[1737131046873,0.24776311,104610.0,104600.0,0.4608]
[1737131048376,0.37902981,104610.0,104600.0,0.4608]
[1737131049176,0.047789,104600.0,104590.0,0.3608]
[1737131049477,0.047789,104600.0,104580.0,0.50922357]
[1737131049975,0.047793,104590.0,104580.0,0.3608]
[1737131050481,0.2268507,104600.0,104580.0,0.3608]
[1737131050682,0.047791,104600.0,104580.0,0.3608]
[1737131050981,0.047791,104600.0,104580.0,0.5398647]
[1737131051179,0.047791,104600.0,104580.0,0.3608]
[1737131051376,0.27362173,104590.0,104580.0,0.3608]
[1737131051679,0.22582873,104590.0,104580.0,0.5398647]
[1737131052078,0.22582873,104590.0,104580.0,0.408598]
[1737131052478,0.22582873,104590.0,104580.0,0.5398647]
[1737131052871,0.20016488,104600.0,104580.0,0.5398647]
[1737131053073,0.20016488,104600.0,104590.0,0.3608]
[1737131053473,0.37922358,104600.0,104580.0,0.3608]
[1737131054268,0.1790597,104590.0,104580.0,0.3608]
[1737131054474,0.047793,104590.0,104580.0,0.3608]
[1737131054680,0.10319774,104590.0,104580.0,0.3608]
[1737131054870,0.05540474,104590.0,104580.0,0.408598]
[1737131055075,0.05540474,104590.0,104580.0,0.5398647]
[1737131055977,0.20016488,104600.0,104580.0,0.5398647]
[1737131056176,0.74002158,104600.0,104580.0,0.408598]
[1737131056372,0.74002158,104600.0,104580.0,0.3608]
[1737131056776,0.1273,104590.0,104580.0,0.3608]
[1737131057673,0.1273,104590.0,104570.0,0.33727674]
[1737131057878,0.535894,104590.0,104570.0,0.56681004]
[1737131058275,0.663794,104590.0,104570.0,0.56681004]
[1737131058583,0.7950607,104590.0,104570.0,0.56681004]
[1737131060169,0.20016488,104600.0,104580.0,0.4920667]
[1737131060373,0.20016488,104600.0,104590.0,0.408593]
[1737131060979,1.08135074,104610.0,104590.0,0.047793]
[1737131061174,0.72425531,104610.0,104590.0,0.047793]
[1737131061476,0.06147031,104610.0,104600.0,0.5398557]
[1737131061874,0.02872966,104610.0,104600.0,0.8048224]
[1737131062074,0.59936543,104620.0,104610.0,0.047784]
[1737131062277,0.59936543,104620.0,104610.0,0.5398507]
[1737131062473,0.59936543,104620.0,104610.0,0.408584]
[1737131063279,0.59936543,104620.0,104610.0,0.5398507]
[1737131063474,0.59936543,104620.0,104610.0,0.408584]
[1737131064583,0.59936543,104620.0,104600.0,0.5398537]
[1737131064779,0.77841213,104620.0,104600.0,0.408587]
[1737131065578,0.46540692,104630.0,104600.0,0.5398527]
[1737131065780,0.46540692,104630.0,104610.0,0.047783]
[1737131066579,0.05683092,104630.0,104620.0,0.04778]
[1737131067487,0.00143448,104630.0,104620.0,0.04778]
[1737131067690,0.00143448,104630.0,104620.0,0.40858]
[1737131067979,0.00143448,104630.0,104620.0,0.04778]
[1737131068481,0.26251132,104630.0,104620.0,0.40858]
[1737131068686,0.26251132,104630.0,104620.0,0.04778]
[1737131068892,0.62331132,104630.0,104620.0,0.04778]
[1737131069278,0.26251132,104630.0,104620.0,0.40858]
[1737131069576,0.00143448,104630.0,104620.0,0.52570437]
[1737131070381,0.2127145,104630.0,104620.0,0.52570437]
[1737131070583,0.258,104670.0,104650.0,0.047763]
[1737131070789,0.3892667,104670.0,104650.0,0.408563]
[1737131070984,0.3892667,104670.0,104660.0,0.3608]
[1737131071179,0.3892667,104670.0,104650.0,0.408563]
[1737131071487,0.258,104670.0,104660.0,0.408561]
[1737131072885,0.258,104670.0,104660.0,0.5398277]
[1737131073087,0.1352,104670.0,104660.0,0.5398277]
[1737131073687,0.1352,104670.0,104660.0,0.408561]
[1737131073888,0.1352,104670.0,104660.0,0.5398277]
[1737131074105,0.1352,104670.0,104660.0,0.408561]
[1737131074387,0.00143376,104680.0,104670.0,0.047757]
[1737131074591,0.00143376,104680.0,104670.0,0.408557]
[1737131077489,0.28592665,104680.0,104670.0,0.408557]
[1737131077693,0.28592665,104680.0,104670.0,0.5398237]
[1737131078381,0.28592665,104680.0,104670.0,0.408557]
[1737131079591,0.64672665,104680.0,104660.0,0.047761]
[1737131079792,0.64672665,104680.0,104650.0,0.01569015]
[1737131079793,0.5398257,104670.0,104650.0,0.01569015]
[1737131080095,0.3903667,104660.0,104640.0,0.047769]
[1737131080290,0.2591,104660.0,104640.0,0.047769]
[1737131080484,0.2591,104660.0,104640.0,0.408569]
[1737131080687,0.2591,104660.0,104640.0,0.5398347]
[1737131080688,0.41729697,104660.0,104640.0,0.5398347]
[1737131080989,0.15819697,104660.0,104650.0,0.5398327]
[1737131081785,0.25578094,104660.0,104650.0,0.7987327]
[1737131082194,0.25578094,104660.0,104650.0,0.9250327]
[1737131082487,0.09180373,104660.0,104650.0,0.9250327]
[1737131082694,0.15819697,104670.0,104660.0,0.047761]
[1737131082695,0.19741424,104670.0,104660.0,0.047761]
[1737131082980,0.19741424,104670.0,104660.0,0.5398277]
[1737131084094,0.28449289,104680.0,104670.0,0.047757]
[1737131084293,0.28449289,104680.0,104670.0,0.5398237]
[1737131084589,0.02035597,104690.0,104680.0,0.047753]
[1737131084791,0.06595082,104700.0,104680.0,0.9394864]
[1737131084990,0.06595082,104700.0,104690.0,0.5398147]
[1737131085397,8.2e-07,104700.0,104690.0,0.8398147]
[1737131085690,0.37087182,104720.0,104710.0,0.047739]
[1737131085895,0.2622,104740.0,104710.0,0.9006057]
[1737131086085,0.2622,104740.0,104730.0,0.40853]
[1737131086593,0.1312,104740.0,104730.0,0.5397967]
[1737131087188,0.1249,104750.0,104740.0,0.047725]
[1737131087388,0.2561,104750.0,104740.0,0.5397917]
[1737131087886,0.1312,104750.0,104740.0,0.5397917]
[1737131088094,0.1275,104770.0,104750.0,0.04772]
[1737131088290,0.2555,104770.0,104750.0,0.40852]
[1737131088885,0.2555,104770.0,104750.0,0.5875037]
[1737131089102,0.2555,104770.0,104760.0,0.047716]
[1737131089482,0.664012,104770.0,104750.0,0.04772]
[1737131089687,0.5397837,104760.0,104730.0,0.408528]
[1737131089887,0.1312667,104750.0,104730.0,0.047728]
[1737131090090,0.4920667,104750.0,104730.0,0.047728]
[1737131090397,0.7557667,104740.0,104720.0,0.408534]
[1737131090701,0.8034927,104740.0,104720.0,0.3608]
[1737131090995,0.1312667,104730.0,104710.0,0.408536]
[1737131091697,0.4920667,104730.0,104710.0,0.047736]
[1737131091997,0.6245,104740.0,104720.0,0.047734]
[1737131092290,0.2637,104740.0,104720.0,0.408534]
[1737131093590,0.7557667,104740.0,104710.0,0.01603348]
[1737131093792,0.4426927,104740.0,104710.0,0.5398037]
[1737131094496,0.8034927,104740.0,104720.0,0.3608]
[1737131094801,0.4920667,104730.0,104710.0,0.408537]
[1737131094997,0.4920667,104720.0,104700.0,0.01537441]
[1737131095190,0.4920667,104720.0,104690.0,0.3608]
[1737131095191,0.6201667,104710.0,104690.0,0.047746]
[1737131095492,0.7550667,104710.0,104690.0,0.047746]
[1737131095695,0.1312667,104700.0,104680.0,0.04918469]
[1737131096201,0.1312667,104700.0,104680.0,0.40998469]
[1737131096899,0.1312667,104700.0,104680.0,0.42590254]
[1737131097302,0.4920667,104700.0,104680.0,0.06510254]
[1737131098194,0.1312667,104690.0,104680.0,0.00143269]
[1737131098392,0.4920667,104700.0,104680.0,0.00143269]
[1737131098603,0.4920667,104700.0,104680.0,0.04918369]
[1737131098899,0.6238,104710.0,104690.0,0.047748]
[1737131099198,0.6238,104710.0,104690.0,0.095493]
[1737131099403,0.6238,104710.0,104690.0,0.047745]
[1737131099587,0.7550667,104710.0,104690.0,0.047745]
[1737131100197,0.1312667,104700.0,104680.0,0.04918469]
[1737131100392,0.4920667,104700.0,104680.0,0.04918469]
[1737131100593,0.5398107,104700.0,104680.0,0.04918469]
[1737131100798,0.1312667,104690.0,104680.0,0.00143269]
[1737131101000,0.4920667,104690.0,104680.0,0.00143269]
[1737131101301,0.4920667,104690.0,104660.0,0.3608]
[1737131101606,0.2594,104680.0,104670.0,0.5398237]
[1737131101903,0.135,104680.0,104670.0,0.5398237]
[1737131102903,0.135,104680.0,104670.0,0.408557]
[1737131103099,0.4852,104700.0,104670.0,0.5398237]
[1737131103302,0.7878107,104700.0,104670.0,0.408555]
[1737131103495,0.4920667,104680.0,104660.0,0.06332677]
[1737131103705,0.4920667,104680.0,104640.0,0.40857]
[1737131103706,0.5398277,104670.0,104640.0,0.40857]
[1737131103899,0.1312667,104650.0,104640.0,0.3608]
[1737131104117,0.6677297,104660.0,104640.0,0.3608]
[1737131104795,0.536463,104660.0,104640.0,0.40857]
[1737131104994,0.4887,104660.0,104640.0,0.40857]
[1737131105295,0.6677287,104660.0,104640.0,0.40857]
[1737131105808,0.4887,104660.0,104640.0,0.40857]
[1737131106002,0.4887,104660.0,104640.0,0.42457042]
[1737131106208,0.6677287,104660.0,104640.0,0.42457042]
[1737131106397,0.1312667,104650.0,104640.0,0.3608]
[1737131106702,0.4920667,104650.0,104630.0,0.41000647]
[1737131107301,0.3608,104640.0,104630.0,0.04920647]
[1737131107601,0.4920667,104640.0,104630.0,0.00143347]
[1737131107800,0.4920667,104640.0,104630.0,0.047776]
[1737131107801,0.4902,104640.0,104630.0,0.047776]
[1737131109004,0.6692377,104640.0,104620.0,0.06325297]
[1737131109206,0.6692377,104640.0,104610.0,0.41172425]
[1737131109207,0.1312667,104630.0,104610.0,0.41172425]
[1737131109395,0.614,104640.0,104620.0,0.047779]
[1737131109707,0.614,104640.0,104620.0,0.408579]
[1737131110299,0.614,104640.0,104620.0,0.047779]
[1737131110499,0.7930387,104640.0,104620.0,0.047779]
[1737131110993,0.7930387,104640.0,104610.0,0.55871967]
[1737131110994,0.7930387,104640.0,104610.0,0.42745497]
[1737131111198,0.7930387,104640.0,104610.0,0.42745397]
[1737131111617,0.7930387,104640.0,104610.0,0.47523597]
[1737131111902,0.7930387,104640.0,104620.0,0.04778]
[1737131112810,0.8408137,104640.0,104610.0,0.42745497]
[1737131113010,0.1312667,104630.0,104610.0,0.42745497]
[1737131113206,0.1312667,104630.0,104610.0,0.42745397]
[1737131114211,0.2624667,104630.0,104610.0,0.42745397]
[1737131114609,0.2624667,104630.0,104610.0,0.47523697]
[1737131114809,0.1312667,104620.0,104610.0,0.37967197]
[1737131115200,0.6232667,104630.0,104610.0,0.42745497]
[1737131115798,0.6232667,104630.0,104610.0,0.06665497]
[1737131117406,0.6232667,104630.0,104620.0,0.04778]
[1737131118316,0.62012396,104630.0,104620.0,0.04778]
[1737131118510,0.48885726,104630.0,104620.0,0.04778]
[1737131119011,0.62012396,104630.0,104620.0,0.04778]
[1737131120405,0.48885726,104630.0,104620.0,0.04778]
[1737131121514,0.62012396,104630.0,104620.0,0.04778]
[1737131122314,0.48885726,104630.0,104620.0,0.04778]
[1737131122514,0.62012396,104630.0,104620.0,0.04778]
[1737131123410,0.62012396,104630.0,104610.0,0.01572872]
[1737131123608,0.62012396,104630.0,104610.0,0.047783]
[1737131124014,0.2532,104640.0,104620.0,0.04778]
[1737131124214,0.2532,104640.0,104630.0,0.5398427]
[1737131124412,0.7449667,104660.0,104640.0,0.047767]
[1737131124611,0.2529,104660.0,104650.0,0.5398327]
[1737131124809,0.00143402,104670.0,104660.0,0.047762]
[1737131125109,0.00143402,104670.0,104660.0,0.408562]
[1737131125517,0.2529,104680.0,104670.0,0.047757]
[1737131126108,0.3841667,104680.0,104670.0,0.047757]
[1737131127710,0.2529,104680.0,104670.0,0.047757]
[1737131127913,0.3841667,104680.0,104660.0,0.3608]
[1737131128219,0.1312667,104670.0,104660.0,0.408559]
[1737131128513,0.3841667,104680.0,104660.0,0.37523553]
[1737131128710,0.2529,104680.0,104670.0,0.047757]
[1737131129110,0.1265,104680.0,104670.0,0.5398237]
[1737131129615,0.00143344,104710.0,104690.0,0.047748]
[1737131129808,0.00143344,104710.0,104700.0,0.408544]
[1737131130014,0.00143344,104710.0,104700.0,0.5398107]
[1737131130305,0.00143344,104710.0,104700.0,0.408544]
[1737131130919,0.1312667,104740.0,104710.0,0.047739]
[1737131131119,0.3608,104730.0,104720.0,0.047732]
[1737131131821,0.4920667,104730.0,104710.0,0.408537]
[1737131132319,0.1312667,104720.0,104710.0,0.408537]
[1737131132522,0.3608,104730.0,104710.0,0.408537]
[1737131132523,0.4920667,104730.0,104710.0,0.408537]
[1737131132823,0.1312667,104730.0,104710.0,0.408537]
[1737131133116,0.1312667,104720.0,104710.0,0.408537]
[1737131133419,0.3608,104730.0,104710.0,0.408537]
[1737131133420,0.4920667,104730.0,104710.0,0.408537]
[1737131133810,0.1312667,104730.0,104710.0,0.408537]
[1737131134017,0.3819667,104740.0,104720.0,0.408532]
[1737131134221,0.7427667,104740.0,104720.0,0.408532]
[1737131134518,0.7427667,104740.0,104720.0,0.3608]
[1737131134720,0.4920667,104730.0,104710.0,0.408538]
[1737131134919,0.3608,104720.0,104700.0,0.37559759]
[1737131135228,0.6218667,104730.0,104710.0,0.047739]
[1737131135520,0.3608,104720.0,104710.0,0.047739]
[1737131136317,0.3608,104720.0,104700.0,0.37559759]
[1737131136520,0.3608,104720.0,104700.0,0.42333959]
[1737131136820,0.4920667,104720.0,104700.0,0.42333959]
[1737131137015,0.1312667,104710.0,104700.0,0.3608]
[1737131137216,0.3945667,104710.0,104700.0,0.3608]
[1737131137418,0.2633,104710.0,104700.0,0.3608]
[1737131138231,0.2633,104710.0,104690.0,0.42214273]
[1737131138410,0.1312667,104700.0,104680.0,0.408552]
[1737131138609,0.1312667,104700.0,104680.0,0.3608]
[1737131138610,0.1312667,104690.0,104680.0,0.3608]
[1737131138814,0.3608,104700.0,104690.0,0.047748]
[1737131139020,0.6241,104710.0,104690.0,0.5398147]
[1737131139216,0.7553667,104710.0,104690.0,0.408548]
[1737131139518,0.4423057,104710.0,104690.0,0.408548]
[1737131139722,0.7553667,104710.0,104690.0,0.408548]
[1737131139915,0.7553667,104710.0,104690.0,0.047748]
[1737131140522,0.8031057,104710.0,104690.0,0.047748]
[1737131140728,0.6241,104710.0,104690.0,0.047748]
[1737131140928,0.6241,104710.0,104700.0,0.047744]
[1737131141117,0.2633,104710.0,104700.0,0.047744]
[1737131142316,0.6241,104710.0,104700.0,0.047744]
[1737131143635,0.1339,104710.0,104700.0,0.1790107]
[1737131145630,0.1339,104710.0,104700.0,0.19221565]
[1737131145833,0.1339,104710.0,104700.0,0.06094895]
[1737131149126,0.4947,104710.0,104700.0,0.06094895]
[1737131149425,0.00143326,104720.0,104710.0,0.047739]
[1737131149630,0.00143326,104720.0,104710.0,0.408539]
[1737131149834,0.00143326,104720.0,104710.0,0.047739]
[1737131150425,0.36223326,104720.0,104710.0,0.047739]
[1737131151729,0.49349996,104720.0,104710.0,0.047739]
[1737131152132,0.36223326,104720.0,104710.0,0.047739]
[1737131153318,0.54123596,104720.0,104700.0,0.01320495]
[1737131153523,0.3608,104710.0,104690.0,0.1790117]
[1737131153724,0.3608,104710.0,104700.0,0.047744]
[1737131156219,0.3608,104710.0,104690.0,0.1448259]
[1737131156418,0.1312667,104700.0,104690.0,0.0135592]
[1737131156644,0.2688,104700.0,104680.0,0.408551]
[1737131156935,0.2688,104700.0,104680.0,0.5398177]
[1737131157326,0.2688,104700.0,104690.0,0.1790147]
[1737131157530,0.2688,104700.0,104690.0,0.047748]
[1737131158933,0.36223326,104720.0,104710.0,0.047739]
[1737131159133,0.36223326,104720.0,104710.0,0.1790057]
[1737131159328,0.36223326,104720.0,104710.0,0.047739]
[1737131160226,0.49349996,104720.0,104700.0,0.408543]
[1737131160430,0.3608,104710.0,104700.0,0.047743]
[1737131160628,0.3608,104710.0,104690.0,0.047747]
[1737131160629,0.4920667,104710.0,104690.0,0.047747]
[1737131160828,0.7643667,104700.0,104680.0,0.06134253]
[1737131161038,0.047753,104680.0,104650.0,0.408565]
[1737131161231,0.2723,104670.0,104650.0,0.3608]
[1737131161432,0.8121257,104670.0,104650.0,0.408566]
[1737131161734,0.6331,104670.0,104650.0,0.408566]
[1737131162133,0.2723,104670.0,104650.0,0.5398327]
[1737131162325,0.2723,104670.0,104660.0,0.5398287]
[1737131162636,0.08796449,104690.0,104680.0,0.047753]
[1737131162835,0.1289,104700.0,104680.0,0.047753]
[1737131163036,0.5398167,104690.0,104660.0,0.047761]
[1737131163432,0.2768,104680.0,104670.0,0.047757]